lending/lending_fUSD_20240111
["ID","MTS","AMOUNT","RATE_DAILY","PERIOD"]
[311203446,1704982249591,-660.536376,0.00036999,7]
[311203447,1704982249601,-151.0,0.00037,7]
[311203448,1704982249611,-151.0,0.00037,7]
[311203449,1704982249620,-151.0,0.00037,7]
[311203450,1704982249629,-151.0,0.00037,7]
[311203451,1704982249638,-151.0,0.00037,7]
[311203452,1704982249648,-151.0,0.00037,7]
[311203453,1704982249657,-154.043534,0.00037,7]
[311203454,1704982249666,-161.08191,0.00037,7]
[311203455,1704982249676,-151.0,0.00037,7]
[311203456,1704982249685,-151.0,0.00037,7]
[311203457,1704982249694,-151.0,0.00037,7]
[311203458,1704982249703,-174.084893,0.00037,7]
[311203459,1704982249713,-174.084893,0.00037,7]
[311203460,1704982249722,-151.0,0.00037,7]
[311203461,1704982249733,-151.0,0.00037,7]
[311203462,1704982249743,-151.0,0.00037,7]
[311203463,1704982249753,-536262.65452168,0.00037,2]
[311203464,1704982249763,-5000.0,0.00037,3]
[311203465,1704982249773,-423.61155071,0.00037,2]
[311203466,1704982249783,-151.0,0.00037,7]
[311203467,1704982249793,-153.19571,0.00037,7]
[311203468,1704982249802,-153.19571,0.00037,7]
[311203469,1704982249815,-151.0,0.00037,7]
[311203470,1704982249825,-151.0,0.00037,7]
[311203471,1704982249835,-151.0,0.00037,7]
[311203472,1704982249845,-151.0,0.00037,7]
[311203473,1704982249855,-151.0,0.00037,7]
[311203474,1704982249864,-1057.660362,0.00037,7]
[311203475,1704982249873,-1057.660362,0.00037,7]
[311203476,1704982249884,-151.0,0.00037,7]
[311203477,1704982249894,-152.68132,0.00037,7]
[311203478,1704982249903,-151.0,0.00037,7]
[311203479,1704982249913,-248.218247,0.00037,7]
[311203480,1704982249922,-151.0,0.00037,7]
[311203481,1704982249933,-151.0,0.00037,7]
[311203482,1704982249944,-151.0,0.00037,7]
[311203483,1704982249954,-240.14985,0.00037,7]
[311203484,1704982249964,-150.0,0.000371,2]
[311203485,1704982249975,-1639.1234694,0.00037127,2]
[311203486,1704982249985,-1958.0,0.0003739,3]
[311203487,1704982249996,-153.0,0.000374,7]
[311203488,1704982250006,-150.0,0.00037401,2]
[311203489,1704982250017,-150.0,0.00037401,2]
[311203490,1704982250028,-151.0,0.00037401,7]
[311203491,1704982250039,-199.547118,0.00037401,7]
[311203492,1704982250261,-151.0,0.00037401,7]
[311203493,1704982250273,-1949.684416,0.00037401,7]
[311203494,1704982250287,-1949.684416,0.00037401,7]
[311203495,1704982250299,-151.0,0.00037401,7]
[311203496,1704982250317,-151.0,0.00037401,7]
[311203497,1704982250331,-5492.53,0.00037402,3]
[311203498,1704982250342,-34789.43009563,0.00037402,2]
[311203499,1704982250352,-428.3488519,0.00037402,2]
[311203500,1704982250362,-1018.09051807,0.00037402,2]
[311203501,1704982250376,-4312.80595345,0.00037402,2]
[311203502,1704982250387,-20273.55933752,0.00037402,2]
[311203503,1704982250397,-2500.0,0.00037402,2]
[311203504,1704982250408,-552.90125293,0.00037402,2]
[311203505,1704982250418,-26525.99645431,0.00037402,2]
[311203506,1704982250428,-2271.03492057,0.00037402,2]
[311203507,1704982250438,-229.75228341,0.00037402,2]
[311203508,1704982250447,-514.47316966,0.00037402,2]
[311203509,1704982250457,-1577.3788805,0.00037402,2]
[311203510,1704982250467,-425775.18762099,0.00037402,2]
[311203511,1704982250478,-871.2949197,0.00037402,2]
[311203512,1704982250487,-26330.63521286,0.00037402,2]
[311203513,1704982250498,-9101.70766296,0.00037402,2]
[311203514,1704982250508,-459.97785104,0.00037402,2]
[311203515,1704982250517,-378.20017143,0.00037402,2]
[311203516,1704982250527,-14534.55140957,0.00037402,2]
[311203517,1704982250537,-226.43485623,0.00037402,2]
[311203518,1704982250547,-2034.29039599,0.00037402,2]
[311203519,1704982250558,-385.73000421,0.00037402,2]
[311203520,1704982250567,-523.00005878,0.00037402,2]
[311203521,1704982250578,-989.87447982,0.00037402,2]
[311203522,1704982250587,-347.90876564,0.00037402,2]
[311203523,1704982250597,-9319.69877245,0.00037402,2]
[311203524,1704982250607,-5000.0,0.00037402,2]
[311203525,1704982250616,-1753.76308041,0.00037402,2]
[311203526,1704982250626,-500.0,0.00037402,120]
[311203527,1704982250636,-151.0,0.00037403,7]
[311203528,1704982250646,-235.618685,0.00037403,7]
[311203529,1704982250656,-151.0,0.00037403,7]
[311203530,1704982250665,-151.0,0.00037403,7]
[311203531,1704982250674,-151.0,0.00037403,7]
[311203532,1704982250684,-151.0,0.00037403,7]
[311203533,1704982250694,-174.084893,0.00037403,7]
[311203534,1704982250703,-174.084893,0.00037403,7]
[311203535,1704982250713,-151.0,0.00037403,7]
[311203536,1704982250723,-151.0,0.00037403,7]
[311203537,1704982250732,-151.0,0.00037403,7]
[311203538,1704982250742,-5683.8292582,0.00037408,10]
[311203539,1704982250752,-153.84,0.00037443,2]
[311203540,1704982250762,-150.36355083,0.00037473,2]
[311203541,1704982250772,-151.0,0.00037518,7]
[311203542,1704982250781,-151.0,0.00037558,7]
[311203543,1704982250791,-151.0,0.00037558,7]
[311203544,1704982250801,-151.0,0.00037558,7]
[311203545,1704982250813,-151.0,0.00037558,7]
[311203546,1704982250823,-151.0,0.00037558,7]
[311203547,1704982250832,-660.536376,0.00037558,7]
[311203548,1704982250842,-660.536376,0.00037558,7]
[311203549,1704982250852,-153.7,0.000377,3]
[311203550,1704982250862,-153.7,0.000377,3]
[311203551,1704982250872,-153.7,0.000377,3]
[311203552,1704982250882,-153.7,0.000377,3]
[311203553,1704982250892,-153.7,0.000377,3]
[311203554,1704982250902,-153.7,0.000377,3]
[311203555,1704982250912,-153.7,0.000377,3]
[311203556,1704982250922,-153.7,0.000377,3]
[311203557,1704982250932,-153.7,0.000377,3]
[311203558,1704982250941,-153.7,0.000377,3]
[311203559,1704982250952,-153.7,0.000377,3]
[311203560,1704982250963,-153.7,0.000377,3]
[311203561,1704982250973,-20862.86949339,0.000378,2]
[311203562,1704982250983,-1931.27,0.00037808,2]
[311203563,1704982250993,-1452.48,0.00037808,2]
[311203564,1704982251002,-3052.0,0.0003789,3]
[311203565,1704982251012,-158.71229651,0.00037897,2]
[311203566,1704982251021,-151.81,0.000379,2]
[311203567,1704982251031,-13856.3,0.000379,7]
[311203568,1704982251040,-2396.82,0.000379,7]
[311203569,1704982251050,-19938.41,0.000379,7]
[311203570,1704982251061,-151.0,0.000379,7]
[311203571,1704982251071,-153.19571,0.000379,7]
[311203572,1704982251081,-153.19571,0.000379,7]
[311203573,1704982251224,-151.0,0.000379,7]
[311203574,1704982251235,-151.0,0.000379,7]
[311203575,1704982251248,-649873.514033,0.000379,3]
[311203576,1704982251259,-151.0,0.000379,7]
[311203577,1704982251270,-1057.660362,0.000379,7]
[311203578,1704982251283,-1057.660362,0.000379,7]
[311203579,1704982251294,-151.0,0.000379,7]
[311203580,1704982251305,-151.0,0.000379,7]
[311203581,1704982251319,-151.0,0.000379,7]
[311203582,1704982251332,-151.835387,0.000379,7]
[311203583,1704982251343,-2894.0,0.00037919,2]
[311203584,1704982251355,-2257.0,0.00037919,2]
[311203585,1704982251366,-1024.0,0.00037919,2]
[311203586,1704982251379,-150.0,0.00037999,2]
[311203587,1704982251390,-150.0,0.00037999,2]
[311203588,1704982251400,-2188.22,0.00038,3]
[311203589,1704982251411,-3060.04420173,0.00038,4]
[311203590,1704982251422,-255524.05999438,0.00038,2]
[311203591,1704982251433,-1644.99006635,0.00038,2]
[311203592,1704982251443,-160.83908732,0.00038,2]
[311203593,1704982251453,-160.83908732,0.00038,2]
[311203594,1704982251465,-160.83908732,0.00038,2]
[311203595,1704982251475,-160.83908732,0.00038,2]
[311203596,1704982251486,-160.83908732,0.00038,2]
[311203597,1704982251496,-160.83908732,0.00038,2]
[311203598,1704982251506,-160.83908732,0.00038,2]
[311203599,1704982251517,-160.83908732,0.00038,2]
[311203600,1704982251526,-160.83908732,0.00038,2]
[311203601,1704982251536,-160.83908732,0.00038,2]
[311203602,1704982251546,-160.83908732,0.00038,2]
[311203603,1704982251559,-160.83908732,0.00038,2]
[311203604,1704982251569,-160.83908732,0.00038,2]
[311203605,1704982251580,-160.83908732,0.00038,2]
[311203606,1704982251592,-160.83908732,0.00038,2]
[311203607,1704982251602,-160.83908732,0.00038,2]
[311203608,1704982251612,-160.83908732,0.00038,2]
[311203609,1704982251623,-160.83908732,0.00038,2]
[311203610,1704982251634,-160.83908732,0.00038,2]
[311203611,1704982251644,-160.83908732,0.00038,2]
[311203612,1704982251655,-160.83908732,0.00038,2]
[311203613,1704982251666,-160.83908732,0.00038,2]
[311203614,1704982251677,-160.83908732,0.00038,2]
[311203615,1704982251689,-160.83908732,0.00038,2]
[311203616,1704982251699,-160.83908732,0.00038,2]
[311203617,1704982251710,-160.83908732,0.00038,2]
[311203618,1704982251721,-160.83908732,0.00038,2]
[311203619,1704982251731,-160.83908732,0.00038,2]
[311203620,1704982251741,-160.83908732,0.00038,2]
[311203621,1704982251752,-160.83908732,0.00038,2]
[311203622,1704982251762,-413.9,0.00038039,2]
[311203623,1704982251774,-494.9883492,0.00038142,2]
[311203624,1704982251784,-153.0,0.000382,7]
[311203625,1704982251794,-343.00261892,0.00038322,2]
[311203626,1704982251804,-22735.9795329,0.0003833,10]
[311203627,1704982251815,-151.0,0.0003833,7]
[311203628,1704982251825,-151.0,0.0003833,7]
[311203629,1704982251835,-1949.684416,0.0003833,7]
[311203630,1704982251845,-1949.684416,0.0003833,7]
[311203631,1704982251855,-151.0,0.0003833,7]
[311203632,1704982251864,-151.0,0.0003833,7]
[311203633,1704982251875,-11827.46280009,0.00038343,8]
[311203634,1704982251885,-294.67204776,0.00038343,8]
[311203635,1704982251895,-1571.55805896,0.00038343,8]
[311203636,1704982251905,-176.86759963,0.00038343,8]
[311203637,1704982251914,-2009.75643233,0.00038343,7]
[311203638,1704982251924,-452.19519728,0.00038343,7]
[311203639,1704982251934,-1820.1467237,0.00038343,7]
[311203640,1704982251944,-666.0,0.00038356,2]
[311203641,1704982251956,-153.84,0.00038356,2]
[311203642,1704982251965,-150.36355083,0.00038383,2]
[311203643,1704982251975,-151.0,0.000384,7]
[311203644,1704982251985,-156.147566,0.000384,7]
[311203645,1704982251995,-220.914338,0.000384,7]
[311203646,1704982252006,-174.084893,0.000384,7]
[311203647,1704982252016,-174.084893,0.000384,7]
[311203648,1704982252026,-151.0,0.000384,7]
[311203649,1704982252036,-151.0,0.000384,7]
[311203650,1704982252046,-5482.0,0.000384,2]
[311203651,1704982252058,-657.04217787,0.000385,2]
[311203652,1704982252068,-1639.1234694,0.00038705,2]
[311203653,1704982252079,-2048.0,0.00038717,10]
[311203654,1704982252090,-157.56837,0.00038736,7]
[311203655,1704982252100,-184.87968352,0.000388,24]
[311203656,1704982252110,-6816.49533736,0.000388,4]
[311203657,1704982252120,-158.508133,0.000388,7]
[311203658,1704982252131,-153.7,0.000388,3]
[311203659,1704982252140,-153.7,0.000388,3]
[311203660,1704982252150,-153.7,0.000388,3]
[311203661,1704982252160,-153.7,0.000388,3]
[311203662,1704982252171,-153.7,0.000388,3]
[311203663,1704982252181,-153.7,0.000388,3]
[311203664,1704982252190,-153.7,0.000388,3]
[311203665,1704982252201,-153.7,0.000388,3]
[311203666,1704982252210,-153.7,0.000388,3]
[311203667,1704982252220,-153.7,0.000388,3]
[311203668,1704982252229,-153.7,0.000388,3]
[311203669,1704982252239,-153.7,0.000388,3]
[311203670,1704982252252,-975.0,0.000388,16]
[311203671,1704982252262,-8178.24773,0.00038948,2]
[311203672,1704982252271,-1762.02403637,0.00038968,4]
[311203673,1704982252282,-425.20473886,0.00038968,4]
[311203674,1704982252293,-2891.24890645,0.00038968,4]
[311203675,1704982252303,-937.43506641,0.00038968,4]
[311203676,1704982252315,-155.29285085,0.00038968,4]
[311203677,1704982252335,-281.73212903,0.0003898,2]
[311203678,1704982252344,-1427.43973993,0.00039,2]
[311203679,1704982252352,-129188.0755,0.00039,2]
[311203680,1704982252362,-232.9030274,0.00039,120]
[311203681,1704982252372,-151.0,0.00039,7]
[311203682,1704982252381,-151.0,0.00039,7]
[311203683,1704982252390,-151.0,0.00039,7]
[311203684,1704982252400,-151.0,0.00039,7]
[311203685,1704982252409,-151.0,0.00039,7]
[311203686,1704982252419,-660.536376,0.00039,7]
[311203687,1704982252428,-660.536376,0.00039,7]
[311203688,1704982252437,-153.0,0.00039,7]
[311203689,1704982252447,-2360.0,0.0003909,3]
[311203690,1704982252456,-165.82,0.00039168,10]
[311203691,1704982252466,-566.54,0.00039168,10]
[311203692,1704982252475,-472.12,0.00039168,10]
[311203693,1704982252485,-393.43,0.00039168,10]
[311203694,1704982252494,-158.71229651,0.00039175,2]
[311203695,1704982252503,-150.0,0.00039177,2]
[311203696,1704982252512,-150.0,0.00039177,2]
[311203697,1704982252523,-502.86882953,0.00039178,4]
[311203698,1704982252532,-500.0,0.00039178,4]
[311203699,1704982252541,-500.0,0.00039178,4]
[311203700,1704982252551,-500.0,0.00039178,4]
[311203701,1704982252563,-500.0,0.00039178,4]
[311203702,1704982252572,-500.0,0.00039178,4]
[311203703,1704982252582,-500.0,0.00039178,4]
[311203704,1704982252591,-500.0,0.00039178,4]
[311203705,1704982252601,-500.0,0.00039178,4]
[311203706,1704982252610,-500.0,0.00039178,4]
[311203707,1704982252619,-500.0,0.00039178,4]
[311203708,1704982252629,-500.0,0.00039178,4]
[311203709,1704982252638,-500.0,0.00039178,4]
[311203710,1704982252647,-500.0,0.00039178,4]
[311203711,1704982252656,-500.0,0.00039178,4]
[311203712,1704982252665,-500.0,0.00039178,4]
[311203713,1704982252675,-500.0,0.00039178,4]
[311203714,1704982252687,-500.0,0.00039178,4]
[311203715,1704982252697,-500.0,0.00039178,4]
[311203716,1704982252706,-500.0,0.00039178,4]
[311203717,1704982252715,-500.0,0.00039178,4]
[311203718,1704982252725,-503.1752749,0.00039178,4]
[311203719,1704982252734,-500.0,0.00039178,4]
[311203720,1704982252744,-500.0,0.00039178,4]
[311203721,1704982252753,-500.0,0.00039178,4]
[311203722,1704982252763,-500.0,0.00039178,4]
[311203723,1704982252773,-500.0,0.00039178,4]
[311203724,1704982252783,-500.0,0.00039178,4]
[311203725,1704982252792,-500.0,0.00039178,4]
[311203726,1704982252802,-500.0,0.00039178,4]
[311203727,1704982252813,-510.29385604,0.00039178,4]
[311203728,1704982252823,-500.0,0.00039178,4]
[311203729,1704982252832,-500.0,0.00039178,4]
[311203730,1704982252842,-500.0,0.00039178,4]
[311203731,1704982252851,-500.0,0.00039178,30]
[311203732,1704982252861,-500.0,0.00039178,4]
[311203733,1704982252871,-500.0,0.00039178,4]
[311203734,1704982252880,-500.0,0.00039178,4]
[311203735,1704982252890,-204.57544709,0.00039178,4]
[311203736,1704982252899,-500.0,0.00039178,4]
[311203737,1704982252910,-500.0,0.00039178,4]
[311203738,1704982252920,-500.0,0.00039178,4]
[311203739,1704982252930,-500.0,0.00039178,4]
[311203740,1704982252940,-500.0,0.00039178,4]
[311203741,1704982252949,-500.0,0.00039178,4]
[311203742,1704982252958,-500.0,0.00039178,4]
[311203743,1704982252968,-500.0,0.00039178,4]
[311203744,1704982252978,-500.0,0.00039178,4]
[311203745,1704982252989,-500.0,0.00039178,4]
[311203746,1704982252999,-500.0,0.00039178,4]
[311203747,1704982253009,-184.81359525,0.00039178,4]
[311203748,1704982253018,-304.63008215,0.00039178,4]
[311203749,1704982253028,-500.0,0.00039178,4]
[311203750,1704982253037,-502.73172252,0.00039178,4]
[311203751,1704982253047,-500.0,0.00039178,4]
[311203752,1704982253057,-500.0,0.00039178,4]
[311203753,1704982253068,-500.0,0.00039178,4]
[311203754,1704982253077,-519.41390109,0.00039178,4]
[311203755,1704982253087,-500.0,0.00039178,4]
[311203756,1704982253097,-236.54022639,0.00039178,4]
[311203757,1704982253107,-506.21751502,0.00039178,4]
[311203758,1704982253117,-500.0,0.00039178,4]
[311203759,1704982253127,-500.0,0.00039178,4]
[311203760,1704982253136,-500.0,0.00039178,4]
[311203761,1704982253146,-500.0,0.00039178,4]
[311203762,1704982253155,-500.0,0.00039178,4]
[311203763,1704982253165,-500.0,0.00039178,4]
[311203764,1704982253175,-500.0,0.00039178,4]
[311203765,1704982253185,-500.0,0.00039178,4]
[311203766,1704982253194,-500.0,0.00039178,4]
[311203767,1704982253204,-500.0,0.00039178,4]
[311203768,1704982253213,-500.0,0.00039178,4]
[311203769,1704982253222,-500.0,0.00039178,4]
[311203770,1704982253232,-558.63389381,0.00039178,4]
[311203771,1704982253241,-500.0,0.00039178,4]
[311203772,1704982253252,-500.0,0.00039178,4]
[311203773,1704982253262,-500.0,0.00039178,4]
[311203774,1704982253271,-500.0,0.00039178,4]
[311203775,1704982253282,-500.0,0.00039178,4]
[311203776,1704982253291,-500.0,0.00039178,4]
[311203777,1704982253301,-500.0,0.00039178,4]
[311203778,1704982253313,-500.0,0.00039178,4]
[311203779,1704982253323,-500.0,0.00039178,4]
[311203780,1704982253332,-500.0,0.00039178,4]
[311203781,1704982253341,-500.0,0.00039178,4]
[311203782,1704982253351,-500.0,0.00039178,4]
[311203783,1704982253360,-500.0,0.00039178,4]
[311203784,1704982253371,-166.64455765,0.00039178,4]
[311203785,1704982253386,-500.0,0.00039178,4]
[311203786,1704982253402,-500.0,0.00039178,4]
[311203787,1704982253411,-500.0,0.00039178,4]
[311203788,1704982253421,-500.0,0.00039178,4]
[311203789,1704982253430,-641.97133176,0.00039178,4]
[311203790,1704982253440,-500.0,0.00039178,4]
[311203791,1704982253449,-500.0,0.00039178,4]
[311203792,1704982253459,-500.0,0.00039178,4]
[311203793,1704982253468,-500.0,0.00039178,4]
[311203794,1704982253478,-500.0,0.00039178,4]
[311203795,1704982253487,-500.0,0.00039178,4]
[311203796,1704982253497,-500.0,0.00039178,4]
[311203797,1704982253506,-500.0,0.00039178,4]
[311203799,1704982253667,-502.43727228,0.00039178,4]
[311203800,1704982253687,-510.78183324,0.00039178,30]
[311203801,1704982253696,-500.0,0.00039178,4]
[311203802,1704982253706,-500.0,0.00039178,4]
[311203803,1704982253715,-500.0,0.00039178,4]
[311203804,1704982253724,-500.0,0.00039178,4]
[311203805,1704982253734,-343.45,0.00039178,4]
[311203806,1704982253743,-500.0,0.00039178,4]
[311203807,1704982253754,-200.0,0.00039178,4]
[311203808,1704982253763,-500.0,0.00039178,4]
[311203809,1704982253773,-500.0,0.00039178,4]
[311203810,1704982253783,-500.0,0.00039178,4]
[311203811,1704982253792,-507.07447009,0.00039178,4]
[311203812,1704982253802,-500.0,0.00039178,4]
[311203813,1704982253812,-500.0,0.00039178,4]
[311203814,1704982253822,-500.0,0.00039178,4]
[311203815,1704982253831,-500.0,0.00039178,4]
[311203816,1704982253841,-500.0,0.00039178,4]
[311203817,1704982253850,-500.0,0.00039178,4]
[311203818,1704982253859,-500.0,0.00039178,4]
[311203819,1704982253868,-500.0,0.00039178,4]
[311203820,1704982253878,-500.0,0.00039178,4]
[311203821,1704982253887,-500.0,0.00039178,4]
[311203822,1704982253897,-500.0,0.00039178,4]
[311203823,1704982253907,-500.0,0.00039178,4]
[311203824,1704982253916,-500.0,0.00039178,4]
[311203825,1704982253926,-523.88128077,0.00039178,4]
[311203826,1704982253935,-500.0,0.00039178,4]
[311203827,1704982253945,-503.0833164,0.00039178,4]
[311203828,1704982253954,-500.0,0.00039178,4]
[311203829,1704982253964,-500.0,0.00039178,4]
[311203830,1704982253973,-500.0,0.00039178,4]
[311203831,1704982253984,-500.0,0.00039178,4]
[311203832,1704982253993,-500.0,0.00039178,4]
[311203833,1704982254003,-164.96879608,0.00039178,4]
[311203834,1704982254012,-500.0,0.00039178,4]
[311203835,1704982254022,-508.21310034,0.00039178,4]
[311203836,1704982254032,-500.0,0.00039178,4]
[311203837,1704982254041,-500.0,0.00039178,4]
[311203838,1704982254051,-500.23835312,0.00039178,4]
[311203839,1704982254063,-500.0,0.00039178,4]
[311203840,1704982254073,-500.0,0.00039178,4]
[311203841,1704982254082,-1000.0,0.00039178,2]
[311203842,1704982254093,-500.0,0.00039178,4]
[311203843,1704982254102,-500.0,0.00039178,4]
[311203844,1704982254112,-500.0,0.00039178,4]
[311203845,1704982254122,-500.0,0.00039178,4]
[311203846,1704982254132,-500.0,0.00039178,4]
[311203847,1704982254142,-500.0,0.00039178,4]
[311203848,1704982254152,-500.0,0.00039178,4]
[311203849,1704982254162,-500.0,0.00039178,4]
[311203850,1704982254171,-500.0,0.00039178,4]
[311203851,1704982254180,-500.0,0.00039178,4]
[311203852,1704982254193,-500.0,0.00039178,4]
[311203853,1704982254203,-500.0,0.00039178,4]
[311203854,1704982254213,-500.0,0.00039178,4]
[311203855,1704982254223,-500.0,0.00039178,4]
[311203856,1704982254233,-500.0,0.00039178,4]
[311203857,1704982254243,-489.79006157,0.00039178,4]
[311203858,1704982254256,-500.0,0.00039178,4]
[311203859,1704982254266,-1000.0,0.00039178,4]
[311203860,1704982254275,-500.0,0.00039178,4]
[311203861,1704982254287,-500.0,0.00039178,4]
[311203862,1704982254297,-500.0,0.00039178,4]
[311203863,1704982254306,-500.0,0.00039178,4]
[311203864,1704982254317,-500.0,0.00039178,4]
[311203865,1704982254327,-500.0,0.00039178,4]
[311203866,1704982254337,-384.38638375,0.00039178,4]
[311203867,1704982254347,-500.0,0.00039178,4]
[311203868,1704982254357,-500.0,0.00039178,4]
[311203869,1704982254367,-500.0,0.00039178,4]
[311203870,1704982254378,-500.0,0.00039178,4]
[311203871,1704982254388,-500.0,0.00039178,4]
[311203872,1704982254398,-500.0,0.00039178,4]
[311203873,1704982254408,-500.0,0.00039178,4]
[311203874,1704982254418,-502.4163725,0.00039178,4]
[311203875,1704982254429,-531.88138015,0.00039178,4]
[311203876,1704982254440,-500.0,0.00039178,4]
[311203877,1704982254450,-500.0,0.00039178,4]
[311203878,1704982254460,-500.0,0.00039178,4]
[311203879,1704982254470,-500.0,0.00039178,4]
[311203880,1704982254479,-500.0,0.00039178,4]
[311203881,1704982254489,-274.85012007,0.00039178,4]
[311203882,1704982254498,-500.0,0.00039178,4]
[311203883,1704982254507,-500.0,0.00039178,4]
[311203884,1704982254518,-505.85959867,0.00039178,4]
[311203885,1704982254527,-500.0,0.00039178,4]
[311203886,1704982254537,-500.0,0.00039178,4]
[311203887,1704982254546,-496.51244198,0.00039178,4]
[311203888,1704982254557,-500.0,0.00039178,4]
[311203889,1704982254567,-500.0,0.00039178,4]
[311203890,1704982254577,-500.0,0.00039178,4]
[311203891,1704982254586,-389.69411125,0.00039178,4]
[311203892,1704982254595,-500.0,0.00039178,4]
[311203893,1704982254605,-500.0,0.00039178,4]
[311203894,1704982254615,-500.0,0.00039178,4]
[311203895,1704982254624,-500.0,0.00039178,4]
[311203896,1704982254634,-500.0,0.00039178,4]
[311203897,1704982254644,-500.0,0.00039178,4]
[311203898,1704982254655,-500.0,0.00039178,4]
[311203899,1704982254665,-500.0,0.00039178,4]
[311203900,1704982254675,-500.0,0.00039178,4]
[311203901,1704982254685,-500.0,0.00039178,4]
[311203902,1704982254694,-500.0,0.00039178,4]
[311203903,1704982254703,-500.0,0.00039178,4]
[311203904,1704982254712,-500.0,0.00039178,4]
[311203905,1704982254722,-500.0,0.00039178,4]
[311203906,1704982254731,-500.0,0.00039178,4]
[311203907,1704982254740,-500.0,0.00039178,4]
[311203908,1704982254749,-500.0,0.00039178,4]
[311203909,1704982254758,-500.0,0.00039178,4]
[311203910,1704982254768,-500.0,0.00039178,4]
[311203911,1704982254777,-500.0,0.00039178,4]
[311203912,1704982254787,-500.0,0.00039178,4]
[311203913,1704982254796,-500.0,0.00039178,4]
[311203914,1704982254806,-500.0,0.00039178,4]
[311203915,1704982254817,-500.0,0.00039178,4]
[311203916,1704982254826,-500.0,0.00039178,4]
[311203917,1704982254836,-500.0,0.00039178,4]
[311203918,1704982254846,-500.0,0.00039178,4]
[311203919,1704982254855,-500.0,0.00039178,4]
[311203920,1704982254868,-500.0,0.00039178,4]
[311203921,1704982254878,-500.0,0.00039178,4]
[311203922,1704982254889,-500.0,0.00039178,4]
[311203923,1704982254898,-500.0,0.00039178,4]
[311203924,1704982254908,-500.0,0.00039178,4]
[311203925,1704982254918,-500.0,0.00039178,4]
[311203926,1704982254927,-500.0,0.00039178,4]
[311203927,1704982254937,-500.0,0.00039178,10]
[311203928,1704982254946,-639.97765676,0.00039178,4]
[311203929,1704982254955,-500.0,0.00039178,4]
[311203930,1704982254965,-500.0,0.00039178,4]
[311203931,1704982254975,-500.0,0.00039178,4]
[311203932,1704982254984,-500.0,0.00039178,4]
[311203933,1704982254994,-500.0,0.00039178,4]
[311203934,1704982255003,-507.43853305,0.00039178,4]
[311203935,1704982255012,-500.0,0.00039178,4]
[311203936,1704982255022,-500.0,0.00039178,4]
[311203937,1704982255032,-500.0,0.00039178,4]
[311203938,1704982255041,-500.0,0.00039178,4]
[311203939,1704982255051,-500.0,0.00039178,4]
[311203940,1704982255060,-500.0,0.00039178,4]
[311203941,1704982255070,-500.0,0.00039178,4]
[311203942,1704982255079,-500.0,0.00039178,4]
[311203943,1704982255089,-500.0,0.00039178,4]
[311203944,1704982255099,-500.0,0.00039178,4]
[311203945,1704982255108,-500.0,0.00039178,4]
[311203946,1704982255117,-500.0,0.00039178,4]